[Event "*** Titled Tuesday 3|2 Blitz"]
[Site "Chess.com"]
[Date "2017.03.07"]
[Round "8"]
[White "SabinaFoisor"]
[Black "Jadeit90"]
[Result "1-0"]
[WhiteElo "2185"]
[BlackElo "2136"]
[TimeControl "180+2"]
[EndTime "14:51:10 PST"]
[Termination "SabinaFoisor won by resignation"]

1. d4 {[%clk 0:03:02]} 1... g6 {[%clk 0:02:54.6]} 2. c4 {[%clk 0:03:02.3]} 2...
Bg7 {[%clk 0:02:53.9]} 3. Nc3 {[%clk 0:03:03.1]} 3... c5 {[%clk 0:02:48.5]} 4.
d5 {[%clk 0:03:03.3]} 4... d6 {[%clk 0:02:44.3]} 5. e4 {[%clk 0:03:00.7]} 5...
Nf6 {[%clk 0:02:43.8]} 6. Nf3 {[%clk 0:03:01.7]} 6... O-O {[%clk 0:02:44.9]} 7.
Be2 {[%clk 0:03:02.8]} 7... e6 {[%clk 0:02:46.3]} 8. O-O {[%clk 0:03:02.5]} 8...
exd5 {[%clk 0:02:47.6]} 9. cxd5 {[%clk 0:03:04.1]} 9... Na6 {[%clk 0:02:49]} 10.
Nd2 {[%clk 0:03:01.4]} 10... Nc7 {[%clk 0:02:50]} 11. a4 {[%clk 0:03:00.1]}
11... Rb8 {[%clk 0:02:50.2]} 12. h3 {[%clk 0:02:54.5]} 12... a6 {[%clk
0:02:51.4]} 13. Nc4 {[%clk 0:02:49.4]} 13... b5 {[%clk 0:02:51]} 14. axb5 {[%clk
0:02:50.2]} 14... axb5 {[%clk 0:02:52.9]} 15. Na5 {[%clk 0:02:50.6]} 15... Bb7
{[%clk 0:02:53.8]} 16. Nxb5 {[%clk 0:02:18.5]} 16... Nxb5 {[%clk 0:02:50.1]} 17.
Bxb5 {[%clk 0:02:20.4]} 17... Bxd5 {[%clk 0:02:36.4]} 18. Nc6 {[%clk 0:02:03.9]}
18... Bxc6 {[%clk 0:02:19.5]} 19. Bxc6 {[%clk 0:02:05.8]} 19... Qb6 {[%clk
0:02:17.1]} 20. Bd5 {[%clk 0:01:54.1]} 20... Nxd5 {[%clk 0:02:14.4]} 21. Qxd5
{[%clk 0:01:55.3]} 21... Rfe8 {[%clk 0:02:13.4]} 22. Rb1 {[%clk 0:01:47.1]}
22... Re5 {[%clk 0:02:14]} 23. Qd3 {[%clk 0:01:46.5]} 23... Rbe8 {[%clk
0:02:13.3]} 24. Bf4 {[%clk 0:01:32.2]} 24... Rxe4 {[%clk 0:02:11.3]} 25. Qxd6
{[%clk 0:01:30.8]} 25... Qb3 {[%clk 0:01:37.8]} 26. Bg3 {[%clk 0:01:15.4]} 26...
Bd4 {[%clk 0:01:36.6]} 27. Kh2 {[%clk 0:00:55.9]} 27... Re2 {[%clk 0:01:33.6]}
28. Qc6 {[%clk 0:00:52.4]} 28... R8e6 {[%clk 0:01:32.6]} 29. Qa8+ {[%clk
0:00:47]} 29... Kg7 {[%clk 0:01:32.4]} 30. Qa3 {[%clk 0:00:47.4]} 30... Qd5
{[%clk 0:01:22.2]} 31. b4 {[%clk 0:00:43.9]} 31... c4 {[%clk 0:01:22.8]} 32.
Rbd1 {[%clk 0:00:43.4]} 32... Qe4 {[%clk 0:01:19.5]} 33. b5 {[%clk 0:00:37.2]}
33... c3 {[%clk 0:01:19]} 34. Qb4 {[%clk 0:00:36.6]} 34... Bxf2 {[%clk 0:01:03]}
35. Qxc3+ {[%clk 0:00:34]} 35... f6 {[%clk 0:00:48.4]} 36. Rxf2 {[%clk
0:00:34.5]} 36... Re3 {[%clk 0:00:44.6]} 37. Qc7+ {[%clk 0:00:33.9]} 37... Re7
{[%clk 0:00:43.3]} 38. Rd7 {[%clk 0:00:34.4]} 38... Rxd7 {[%clk 0:00:41]} 39.
Qxd7+ {[%clk 0:00:36.3]} 39... Kh6 {[%clk 0:00:42.5]} 40. Qc6 {[%clk 0:00:35.4]}
40... Rxg3 {[%clk 0:00:38.3]} 41. Qxe4 {[%clk 0:00:35.3]} 1-0

[Event "*** Titled Tuesday 3|2 Blitz"]
[Site "Chess.com"]
[Date "2017.03.07"]
[Round "8"]
[White "Schoenbrunn"]
[Black "Marreuh"]
[Result "0-1"]
[WhiteElo "1866"]
[BlackElo "2101"]
[TimeControl "180+2"]
[EndTime "14:51:19 PST"]
[Termination "Marreuh won on time"]

1. e4 {[%clk 0:03:02]} 1... c5 {[%clk 0:03:00.4]} 2. Nf3 {[%clk 0:03:01.9]} 2...
d6 {[%clk 0:03:01.6]} 3. d4 {[%clk 0:03:02.2]} 3... cxd4 {[%clk 0:03:03.5]} 4.
Nxd4 {[%clk 0:03:03.2]} 4... Nf6 {[%clk 0:03:05]} 5. Nc3 {[%clk 0:03:03.4]} 5...
a6 {[%clk 0:03:06.5]} 6. Bg5 {[%clk 0:02:53.4]} 6... Nbd7 {[%clk 0:03:06.4]} 7.
Qe2 {[%clk 0:02:35.9]} 7... h6 {[%clk 0:02:59.7]} 8. Bh4 {[%clk 0:02:20.3]} 8...
g6 {[%clk 0:03:00.9]} 9. f4 {[%clk 0:02:11.8]} 9... e5 {[%clk 0:03:01.7]} 10.
fxe5 {[%clk 0:02:11.1]} 10... dxe5 {[%clk 0:03:01.5]} 11. O-O-O {[%clk
0:02:11.4]} 11... Qc7 {[%clk 0:02:44.7]} 12. Nb3 {[%clk 0:02:08]} 12... b5
{[%clk 0:02:41.7]} 13. Nd5 {[%clk 0:02:07.6]} 13... Nxd5 {[%clk 0:02:40.8]} 14.
exd5 {[%clk 0:02:08.7]} 14... Bg7 {[%clk 0:02:36.2]} 15. Qd2 {[%clk 0:01:11.4]}
15... Qd6 {[%clk 0:02:14.2]} 16. Kb1 {[%clk 0:00:51.8]} 16... O-O {[%clk
0:02:14.4]} 17. c4 {[%clk 0:00:39.2]} 17... bxc4 {[%clk 0:02:09.6]} 18. Bxc4
{[%clk 0:00:39.7]} 18... Nb6 {[%clk 0:02:07.8]} 19. Na5 {[%clk 0:00:34.2]} 19...
Bf5+ {[%clk 0:01:40.6]} 20. Ka1 {[%clk 0:00:34.4]} 20... Rfc8 {[%clk 0:01:34.3]}
21. Bb3 {[%clk 0:00:32.3]} 21... Rc5 {[%clk 0:01:26.5]} 22. Nc6 {[%clk
0:00:30.4]} 22... Nc4 {[%clk 0:01:05.7]} 23. Bxc4 {[%clk 0:00:28.6]} 23... Rxc4
{[%clk 0:01:07.6]} 24. Ne7+ {[%clk 0:00:25.1]} 24... Kh7 {[%clk 0:01:02.8]} 25.
Nxf5 {[%clk 0:00:25.2]} 25... gxf5 {[%clk 0:01:04.7]} 26. Bf2 {[%clk 0:00:17.6]}
26... e4 {[%clk 0:01:03.7]} 27. Rc1 {[%clk 0:00:15.7]} 27... Rb4 {[%clk
0:01:00.8]} 28. Rc2 {[%clk 0:00:13.3]} 28... Rab8 {[%clk 0:00:57.9]} 29. Rb1
{[%clk 0:00:10.2]} 29... R4b5 {[%clk 0:00:55]} 30. g4 {[%clk 0:00:05.1]} 30...
fxg4 {[%clk 0:00:49.8]} 31. Qe3 {[%clk 0:00:04]} 31... Qxd5 {[%clk 0:00:39.5]}
32. Rd2 {[%clk 0:00:03.3]} 32... Qe5 {[%clk 0:00:38]} 0-1

[Event "*** Titled Tuesday 3|2 Blitz"]
[Site "Chess.com"]
[Date "2017.03.07"]
[Round "8"]
[White "GianmarcoVaR"]
[Black "Hikaru"]
[Result "0-1"]
[WhiteElo "2448"]
[BlackElo "2909"]
[TimeControl "180+2"]
[EndTime "14:51:23 PST"]
[Termination "Hikaru won on time"]

1. d4 {[%clk 0:03:02]} 1... d5 {[%clk 0:03:00.7]} 2. Nf3 {[%clk 0:03:02.5]} 2...
Nf6 {[%clk 0:02:57]} 3. c4 {[%clk 0:03:03.5]} 3... e6 {[%clk 0:02:58.2]} 4. g3
{[%clk 0:03:03.8]} 4... Bb4+ {[%clk 0:02:58.8]} 5. Bd2 {[%clk 0:03:05.2]} 5...
Be7 {[%clk 0:03:00.4]} 6. Bg2 {[%clk 0:03:04.3]} 6... O-O {[%clk 0:03:02]} 7.
O-O {[%clk 0:03:04.5]} 7... c6 {[%clk 0:03:03.6]} 8. Qc2 {[%clk 0:02:59.2]} 8...
Ne4 {[%clk 0:02:59.5]} 9. Rd1 {[%clk 0:02:54]} 9... Nd7 {[%clk 0:02:55.3]} 10.
b3 {[%clk 0:02:39.1]} 10... f5 {[%clk 0:02:45.3]} 11. Bc1 {[%clk 0:02:38.1]}
11... Bf6 {[%clk 0:02:44.5]} 12. Bb2 {[%clk 0:02:35.8]} 12... b5 {[%clk
0:02:36.9]} 13. cxd5 {[%clk 0:02:32.7]} 13... cxd5 {[%clk 0:02:38.8]} 14. Qc6
{[%clk 0:02:10.1]} 14... Nb6 {[%clk 0:02:34.3]} 15. Qxb5 {[%clk 0:02:09.2]}
15... a5 {[%clk 0:02:30.5]} 16. Nc3 {[%clk 0:01:21.5]} 16... Ba6 {[%clk
0:02:30.1]} 17. Qc6 {[%clk 0:01:22.4]} 17... Re8 {[%clk 0:02:28.9]} 18. Na4
{[%clk 0:01:12.4]} 18... Nxa4 {[%clk 0:02:22.2]} 19. Qxa4 {[%clk 0:01:13.4]}
19... Qb6 {[%clk 0:02:12.4]} 20. Bf1 {[%clk 0:00:27.5]} 20... Bb5 {[%clk
0:02:11.7]} 21. Qa3 {[%clk 0:00:28.6]} 21... Be7 {[%clk 0:02:01.3]} 22. b4
{[%clk 0:00:29.9]} 22... axb4 {[%clk 0:02:03.2]} 23. Qe3 {[%clk 0:00:31]} 23...
Bd6 {[%clk 0:02:00.7]} 24. Ne5 {[%clk 0:00:29.8]} 24... Bxe5 {[%clk 0:02:01.1]}
25. dxe5 {[%clk 0:00:30.6]} 25... Qxe3 {[%clk 0:02:03]} 26. fxe3 {[%clk
0:00:32.4]} 26... Rec8 {[%clk 0:02:03.9]} 27. Bd4 {[%clk 0:00:32]} 27... Nc3
{[%clk 0:02:01.5]} 28. Rd2 {[%clk 0:00:32.3]} 28... b3 {[%clk 0:01:55.1]} 29.
Rb2 {[%clk 0:00:32.9]} 29... Rxa2 {[%clk 0:01:53.4]} 30. Rbxa2 {[%clk
0:00:08.7]} 30... bxa2 {[%clk 0:01:48.5]} 31. Bxc3 {[%clk 0:00:08.7]} 31... Rxc3
{[%clk 0:01:50.4]} 32. Rxa2 {[%clk 0:00:09.2]} 32... Rxe3 {[%clk 0:01:50.4]} 33.
Ra5 {[%clk 0:00:06.2]} 33... Bc4 {[%clk 0:01:50.5]} 34. Kf2 {[%clk 0:00:05.5]}
34... Rxe5 {[%clk 0:01:51.5]} 35. Bg2 {[%clk 0:00:06.9]} 35... Rxe2+ {[%clk
0:01:52.1]} 36. Kf3 {[%clk 0:00:08.4]} 36... g5 {[%clk 0:01:51.9]} 37. Bf1
{[%clk 0:00:06.2]} 37... Rxh2 {[%clk 0:01:43.1]} 38. Bxc4 {[%clk 0:00:05.9]}
38... dxc4 {[%clk 0:01:45]} 39. Rc5 {[%clk 0:00:04.8]} 39... Rc2 {[%clk
0:01:43.2]} 40. Rc7 {[%clk 0:00:04.6]} 40... h5 {[%clk 0:01:43.5]} 41. Ke3
{[%clk 0:00:05.3]} 41... h4 {[%clk 0:01:37.7]} 42. gxh4 {[%clk 0:00:05.6]} 42...
gxh4 {[%clk 0:01:39.6]} 43. Kf4 {[%clk 0:00:07.1]} 43... h3 {[%clk 0:01:41.2]}
44. Kg5 {[%clk 0:00:08.1]} 44... Rg2+ {[%clk 0:01:41]} 45. Kf6 {[%clk
0:00:09.2]} 45... h2 {[%clk 0:01:42.5]} 46. Rc8+ {[%clk 0:00:10.5]} 46... Kh7
{[%clk 0:01:43.5]} 47. Rc7+ {[%clk 0:00:11.9]} 47... Kh8 {[%clk 0:01:37.6]} 48.
Rc8+ {[%clk 0:00:12.9]} 48... Rg8 {[%clk 0:01:38.2]} 0-1

[Event "*** Titled Tuesday 3|2 Blitz"]
[Site "Chess.com"]
[Date "2017.03.07"]
[Round "8"]
[White "vpantev"]
[Black "olomi007"]
[Result "1-0"]
[WhiteElo "2474"]
[BlackElo "2479"]
[TimeControl "180+2"]
[EndTime "14:51:25 PST"]
[Termination "vpantev won by resignation"]

1. d4 {[%clk 0:02:47.7]} 1... Nf6 {[%clk 0:03:00]} 2. Nf3 {[%clk 0:02:48.8]}
2... g6 {[%clk 0:03:00.7]} 3. Bf4 {[%clk 0:02:49.9]} 3... Bg7 {[%clk 0:03:01.2]}
4. e3 {[%clk 0:02:51.5]} 4... d6 {[%clk 0:03:02.7]} 5. Be2 {[%clk 0:02:53]} 5...
O-O {[%clk 0:03:02.5]} 6. O-O {[%clk 0:02:54.5]} 6... b6 {[%clk 0:03:03.6]} 7.
c4 {[%clk 0:02:55.2]} 7... Bb7 {[%clk 0:03:03.4]} 8. Nc3 {[%clk 0:02:56.8]} 8...
Ne4 {[%clk 0:03:03.6]} 9. Nxe4 {[%clk 0:02:56.7]} 9... Bxe4 {[%clk 0:03:04]} 10.
Nd2 {[%clk 0:02:57.9]} 10... Bb7 {[%clk 0:03:03.5]} 11. Bf3 {[%clk 0:02:58.9]}
11... Qc8 {[%clk 0:03:03.8]} 12. Bg3 {[%clk 0:02:54.9]} 12... Nd7 {[%clk
0:03:04.1]} 13. Qa4 {[%clk 0:02:53.9]} 13... Bxf3 {[%clk 0:02:56.6]} 14. Nxf3
{[%clk 0:02:54.1]} 14... c5 {[%clk 0:02:57.9]} 15. Rfd1 {[%clk 0:02:53.9]} 15...
Qc7 {[%clk 0:02:50.7]} 16. Rac1 {[%clk 0:02:52.6]} 16... Nf6 {[%clk 0:02:50.4]}
17. a3 {[%clk 0:02:47.5]} 17... Ne4 {[%clk 0:02:49.2]} 18. b4 {[%clk 0:02:48.4]}
18... a5 {[%clk 0:02:38.1]} 19. b5 {[%clk 0:02:40.2]} 19... Rac8 {[%clk
0:02:37.1]} 20. Qb3 {[%clk 0:02:33.2]} 20... f5 {[%clk 0:02:25.5]} 21. d5 {[%clk
0:02:32.8]} 21... g5 {[%clk 0:02:17.2]} 22. Qd3 {[%clk 0:02:29]} 22... Qd7
{[%clk 0:02:09.8]} 23. Nd2 {[%clk 0:02:28.9]} 23... Nf6 {[%clk 0:01:57.9]} 24.
a4 {[%clk 0:02:24.1]} 24... Rf7 {[%clk 0:01:55.4]} 25. f3 {[%clk 0:02:20.1]}
25... Rcf8 {[%clk 0:01:55.7]} 26. Rf1 {[%clk 0:02:16]} 26... Qc8 {[%clk
0:01:54.1]} 27. Rce1 {[%clk 0:02:10.6]} 27... Nd7 {[%clk 0:01:52]} 28. Kh1
{[%clk 0:02:06.4]} 28... Qe8 {[%clk 0:01:52.4]} 29. f4 {[%clk 0:02:04.5]} 29...
h6 {[%clk 0:01:49.4]} 30. Nf3 {[%clk 0:02:04.5]} 30... g4 {[%clk 0:01:48.5]} 31.
Nd2 {[%clk 0:02:05.4]} 31... Rf6 {[%clk 0:01:48.7]} 32. e4 {[%clk 0:02:05.5]}
32... fxe4 {[%clk 0:01:49.5]} 33. Nxe4 {[%clk 0:02:06.2]} 33... Qg6 {[%clk
0:01:40.6]} 34. Nxf6+ {[%clk 0:01:59.9]} 34... Qxf6 {[%clk 0:01:36.7]} 35. Qe4
{[%clk 0:02:00.2]} 35... Rf7 {[%clk 0:01:34.7]} 36. Qe6 {[%clk 0:01:59.8]} 36...
Nf8 {[%clk 0:01:35.2]} 37. Qxg4 {[%clk 0:02:00.5]} 37... Qd4 {[%clk 0:01:33.9]}
38. Qe2 {[%clk 0:01:56.5]} 38... Bf6 {[%clk 0:01:30.1]} 39. f5 {[%clk
0:01:54.6]} 39... Nd7 {[%clk 0:01:27.8]} 40. Rf4 {[%clk 0:01:54.6]} 40... Qc3
{[%clk 0:01:27.2]} 41. Rg4+ {[%clk 0:01:50.9]} 41... Kh7 {[%clk 0:01:27.6]} 42.
Qe3 {[%clk 0:01:46]} 42... Qxe3 {[%clk 0:01:18]} 43. Rxe3 {[%clk 0:01:46.3]}
43... Bd4 {[%clk 0:01:15.6]} 44. Re1 {[%clk 0:01:42]} 44... Ne5 {[%clk
0:01:13.9]} 45. Bxe5 {[%clk 0:01:41.8]} 45... dxe5 {[%clk 0:01:09.2]} 46. Rf1
{[%clk 0:01:42.4]} 46... h5 {[%clk 0:01:04.6]} 47. Re4 {[%clk 0:01:42.7]} 47...
Kh6 {[%clk 0:01:04.9]} 48. g3 {[%clk 0:01:42.3]} 48... Kg5 {[%clk 0:01:05.7]}
49. Kg2 {[%clk 0:01:42.9]} 49... Rxf5 {[%clk 0:00:57.7]} 50. h4+ {[%clk
0:01:39.3]} 50... Kg6 {[%clk 0:00:57.6]} 51. Rxf5 {[%clk 0:01:39.9]} 51... Kxf5
{[%clk 0:00:59.1]} 52. Kf3 {[%clk 0:01:40.8]} 52... Kg6 {[%clk 0:00:57.3]} 53.
g4 {[%clk 0:01:41.2]} 53... Bc3 {[%clk 0:00:56.4]} 54. g5 {[%clk 0:01:40.3]}
54... Bb2 {[%clk 0:00:53.8]} 55. Re2 {[%clk 0:01:40.2]} 55... Bd4 {[%clk
0:00:53.3]} 56. Ke4 {[%clk 0:01:40.6]} 56... Bc3 {[%clk 0:00:50.2]} 57. Rf2
{[%clk 0:01:41.2]} 57... Kg7 {[%clk 0:00:51.5]} 58. Rf5 {[%clk 0:01:40.9]} 58...
Be1 {[%clk 0:00:49.4]} 59. Rxe5 {[%clk 0:01:41.8]} 59... Bxh4 {[%clk 0:00:50.6]}
60. Kf5 {[%clk 0:01:42]} 1-0

[Event "*** Titled Tuesday 3|2 Blitz"]
[Site "Chess.com"]
[Date "2017.03.07"]
[Round "8"]
[White "igorkovalenko"]
[Black "GGuseinov"]
[Result "0-1"]
[WhiteElo "2695"]
[BlackElo "2685"]
[TimeControl "180+2"]
[EndTime "14:51:43 PST"]
[Termination "GGuseinov won by resignation"]

1. c4 {[%clk 0:03:02]} 1... g6 {[%clk 0:02:59.3]} 2. d4 {[%clk 0:03:02.2]} 2...
Bg7 {[%clk 0:02:59.9]} 3. e4 {[%clk 0:03:03.8]} 3... d6 {[%clk 0:03:00.6]} 4.
Nc3 {[%clk 0:03:04.4]} 4... Nf6 {[%clk 0:03:01.3]} 5. Nf3 {[%clk 0:03:01.9]}
5... O-O {[%clk 0:03:01.6]} 6. h3 {[%clk 0:03:03.5]} 6... e5 {[%clk 0:03:01.4]}
7. d5 {[%clk 0:03:05]} 7... Nh5 {[%clk 0:03:01.8]} 8. Be3 {[%clk 0:03:05]} 8...
Na6 {[%clk 0:02:56.6]} 9. a3 {[%clk 0:03:06.2]} 9... f5 {[%clk 0:02:49]} 10. b4
{[%clk 0:03:07.8]} 10... Nf4 {[%clk 0:02:40.9]} 11. Rc1 {[%clk 0:02:53]} 11...
c5 {[%clk 0:02:29.4]} 12. dxc6 {[%clk 0:02:54.1]} 12... bxc6 {[%clk 0:02:30.1]}
13. g3 {[%clk 0:02:51]} 13... Ne6 {[%clk 0:02:26.5]} 14. exf5 {[%clk 0:02:52.4]}
14... gxf5 {[%clk 0:02:25.2]} 15. Bg2 {[%clk 0:02:40.4]} 15... f4 {[%clk
0:02:16.2]} 16. Bd2 {[%clk 0:02:41.5]} 16... d5 {[%clk 0:02:11]} 17. cxd5 {[%clk
0:02:31.4]} 17... cxd5 {[%clk 0:02:10.9]} 18. gxf4 {[%clk 0:02:31.8]} 18... e4
{[%clk 0:02:03]} 19. Ne5 {[%clk 0:02:21.4]} 19... Nac7 {[%clk 0:02:00.5]} 20.
Qb3 {[%clk 0:02:03.5]} 20... Nxf4 {[%clk 0:01:53.2]} 21. Bxf4 {[%clk 0:02:03.3]}
21... Rxf4 {[%clk 0:01:54.4]} 22. Nc6 {[%clk 0:02:03.3]} 22... Qh4 {[%clk
0:01:49]} 23. Rc2 {[%clk 0:01:30.8]} 23... Kh8 {[%clk 0:01:41.5]} 24. Nxd5
{[%clk 0:00:51.3]} 24... Be6 {[%clk 0:01:35.6]} 25. Nce7 {[%clk 0:00:52.3]}
25... Nxd5 {[%clk 0:01:20.7]} 26. Nxd5 {[%clk 0:00:54.2]} 26... Bd4 {[%clk
0:01:05.4]} 27. Qc4 {[%clk 0:00:39.8]} 27... e3 {[%clk 0:00:57.1]} 28. Qc6
{[%clk 0:00:24.1]} 28... Rxf2 {[%clk 0:00:41]} 29. Kd1 {[%clk 0:00:25.2]} 29...
Rc8 {[%clk 0:00:34]} 30. Qxc8+ {[%clk 0:00:14.6]} 30... Bxc8 {[%clk 0:00:34.6]}
31. Rxc8+ {[%clk 0:00:16.5]} 31... Kg7 {[%clk 0:00:35]} 32. Rc7+ {[%clk
0:00:18.4]} 32... Kh6 {[%clk 0:00:32]} 33. Rc6+ {[%clk 0:00:14]} 33... Kg5
{[%clk 0:00:30.7]} 34. Rg1 {[%clk 0:00:13.7]} 34... e2+ {[%clk 0:00:25.4]} 35.
Kd2 {[%clk 0:00:15]} 35... e1=Q+ {[%clk 0:00:20.7]} 36. Kxe1 {[%clk 0:00:16.1]}
36... Rxg2+ {[%clk 0:00:19.7]} 0-1

[Event "*** Titled Tuesday 3|2 Blitz"]
[Site "Chess.com"]
[Date "2017.03.07"]
[Round "8"]
[White "jk13"]
[Black "GMCanty"]
[Result "0-1"]
[WhiteElo "2483"]
[BlackElo "2358"]
[TimeControl "180+2"]
[EndTime "14:51:48 PST"]
[Termination "GMCanty won by resignation"]

1. e4 {[%clk 0:03:02]} 1... c5 {[%clk 0:02:59.2]} 2. c3 {[%clk 0:03:03]} 2... g6
{[%clk 0:02:59.9]} 3. Nf3 {[%clk 0:03:00]} 3... Bg7 {[%clk 0:03:00.6]} 4. Bc4
{[%clk 0:03:01.7]} 4... e6 {[%clk 0:03:01.4]} 5. d4 {[%clk 0:03:02.3]} 5... cxd4
{[%clk 0:03:03.3]} 6. O-O {[%clk 0:03:03.4]} 6... Ne7 {[%clk 0:03:03.5]} 7. Bg5
{[%clk 0:03:00.2]} 7... O-O {[%clk 0:03:02.9]} 8. cxd4 {[%clk 0:03:00.7]} 8...
f6 {[%clk 0:03:01.3]} 9. Be3 {[%clk 0:02:57.1]} 9... d5 {[%clk 0:03:03.2]} 10.
exd5 {[%clk 0:02:52.3]} 10... exd5 {[%clk 0:03:05.1]} 11. Bb3 {[%clk 0:02:52.8]}
11... Kh8 {[%clk 0:03:06.2]} 12. Nc3 {[%clk 0:02:53.8]} 12... Nbc6 {[%clk
0:03:07.2]} 13. h3 {[%clk 0:02:54.8]} 13... Be6 {[%clk 0:03:07.4]} 14. Re1
{[%clk 0:02:55.9]} 14... Bf7 {[%clk 0:03:08.2]} 15. Qd2 {[%clk 0:02:56.2]} 15...
Nf5 {[%clk 0:03:06.8]} 16. Bf4 {[%clk 0:02:56.7]} 16... g5 {[%clk 0:02:58.9]}
17. Bh2 {[%clk 0:02:54.6]} 17... Na5 {[%clk 0:02:59.8]} 18. Qd3 {[%clk
0:02:31.7]} 18... Nxb3 {[%clk 0:02:53.6]} 19. axb3 {[%clk 0:02:31.1]} 19... Nd6
{[%clk 0:02:51.6]} 20. Nd2 {[%clk 0:02:05.1]} 20... Bg6 {[%clk 0:02:49.2]} 21.
Qf3 {[%clk 0:02:04.4]} 21... Nf5 {[%clk 0:02:41.1]} 22. Qd3 {[%clk 0:01:47.6]}
22... a6 {[%clk 0:02:29.4]} 23. Nf1 {[%clk 0:01:42.3]} 23... Qd7 {[%clk
0:02:02.5]} 24. Na4 {[%clk 0:01:39.4]} 24... Qb5 {[%clk 0:02:01.9]} 25. Qxb5
{[%clk 0:01:13.7]} 25... axb5 {[%clk 0:02:03.8]} 26. Nb6 {[%clk 0:01:14]} 26...
Rxa1 {[%clk 0:02:04.6]} 27. Rxa1 {[%clk 0:01:15.9]} 27... Nxd4 {[%clk
0:02:05.9]} 28. Nxd5 {[%clk 0:01:15.9]} 28... Nxb3 {[%clk 0:02:06.8]} 29. Ra7
{[%clk 0:01:16]} 29... Be4 {[%clk 0:02:01.6]} 30. Nb6 {[%clk 0:00:46.4]} 30...
f5 {[%clk 0:01:47]} 31. Bd6 {[%clk 0:00:41.8]} 31... Rd8 {[%clk 0:01:37.2]} 32.
Be7 {[%clk 0:00:40.2]} 32... Re8 {[%clk 0:01:34.6]} 33. Bxg5 {[%clk 0:00:38]}
33... Bxb2 {[%clk 0:01:30.5]} 34. Be3 {[%clk 0:00:33.3]} 34... Bd4 {[%clk
0:01:23.8]} 35. Bxd4+ {[%clk 0:00:32.4]} 35... Nxd4 {[%clk 0:01:25.7]} 36. f3
{[%clk 0:00:33.5]} 36... Bc6 {[%clk 0:01:22.7]} 37. Ra2 {[%clk 0:00:31.7]} 37...
Re1 {[%clk 0:01:10.9]} 38. Kf2 {[%clk 0:00:31.7]} 38... Rb1 {[%clk 0:01:12.4]}
39. Nd2 {[%clk 0:00:31]} 39... Rd1 {[%clk 0:01:08.3]} 40. Ke3 {[%clk 0:00:29.6]}
40... Ne6 {[%clk 0:01:00.2]} 41. Rb2 {[%clk 0:00:23.1]} 41... f4+ {[%clk
0:00:56.5]} 42. Ke2 {[%clk 0:00:23.3]} 42... Rg1 {[%clk 0:00:56.4]} 43. Kf2
{[%clk 0:00:24.6]} 43... Rc1 {[%clk 0:00:57.6]} 44. Ne4 {[%clk 0:00:24.6]} 44...
Kg7 {[%clk 0:00:53.3]} 45. Nd6 {[%clk 0:00:22.9]} 45... Nc5 {[%clk 0:00:52.6]}
46. Ke2 {[%clk 0:00:21.6]} 46... Rg1 {[%clk 0:00:49.3]} 47. Kf2 {[%clk
0:00:17.5]} 47... Rd1 {[%clk 0:00:49.6]} 48. Ke2 {[%clk 0:00:18.6]} 48... Rxd6
{[%clk 0:00:49.7]} 0-1

[Event "*** Titled Tuesday 3|2 Blitz"]
[Site "Chess.com"]
[Date "2017.03.07"]
[Round "8"]
[White "GMHess"]
[Black "chito89"]
[Result "0-1"]
[WhiteElo "2590"]
[BlackElo "2558"]
[TimeControl "180+2"]
[EndTime "14:51:51 PST"]
[Termination "chito89 won by checkmate"]

1. d4 {[%clk 0:02:55.4]} 1... Nf6 {[%clk 0:02:58.1]} 2. c4 {[%clk 0:02:56.2]}
2... g6 {[%clk 0:02:58.6]} 3. Nc3 {[%clk 0:02:54.9]} 3... Bg7 {[%clk 0:02:59.4]}
4. e4 {[%clk 0:02:56.2]} 4... d6 {[%clk 0:02:59.9]} 5. Nf3 {[%clk 0:02:57.7]}
5... O-O {[%clk 0:03:00.4]} 6. Be2 {[%clk 0:02:59.4]} 6... Bg4 {[%clk
0:03:01.1]} 7. Ng1 {[%clk 0:02:58.7]} 7... Bc8 {[%clk 0:02:57.6]} 8. Nf3 {[%clk
0:02:59.1]} 8... Bg4 {[%clk 0:02:57.2]} 9. Ng1 {[%clk 0:02:56.9]} 9... Bd7
{[%clk 0:02:57.9]} 10. f3 {[%clk 0:02:53.3]} 10... c5 {[%clk 0:02:52.6]} 11. d5
{[%clk 0:02:49.7]} 11... b5 {[%clk 0:02:48.7]} 12. Nxb5 {[%clk 0:02:36.1]} 12...
Bxb5 {[%clk 0:02:47.2]} 13. cxb5 {[%clk 0:02:38]} 13... a6 {[%clk 0:02:48.7]}
14. Qa4 {[%clk 0:02:12]} 14... Nfd7 {[%clk 0:02:47.7]} 15. bxa6 {[%clk
0:02:12.7]} 15... Qb6 {[%clk 0:02:27.7]} 16. Rb1 {[%clk 0:01:53.4]} 16... Ra7
{[%clk 0:02:18.4]} 17. Be3 {[%clk 0:01:37.1]} 17... Nxa6 {[%clk 0:02:16.5]} 18.
a3 {[%clk 0:01:01.7]} 18... Rb8 {[%clk 0:02:01.7]} 19. Kf2 {[%clk 0:00:42.5]}
19... Nc7 {[%clk 0:01:16.5]} 20. Qxd7 {[%clk 0:00:26.5]} 20... Nxd5 {[%clk
0:01:17.4]} 21. Qxa7 {[%clk 0:00:28]} 21... Qxa7 {[%clk 0:01:17.6]} 22. exd5
{[%clk 0:00:29.6]} 22... Bxb2 {[%clk 0:01:14]} 23. Nh3 {[%clk 0:00:24.8]} 23...
Qxa3 {[%clk 0:01:15.1]} 24. Nf4 {[%clk 0:00:24.6]} 24... Rb3 {[%clk 0:01:13.4]}
25. Nd3 {[%clk 0:00:20]} 25... Bg7 {[%clk 0:00:54.3]} 26. Rhd1 {[%clk
0:00:13.1]} 26... h6 {[%clk 0:00:49.4]} 27. Rxb3 {[%clk 0:00:13.2]} 27... Qxb3
{[%clk 0:00:50.6]} 28. Nc1 {[%clk 0:00:14.9]} 28... Qc2 {[%clk 0:00:48.3]} 29.
Rd3 {[%clk 0:00:13.6]} 29... c4 {[%clk 0:00:37.7]} 30. Ra3 {[%clk 0:00:12.5]}
30... Bb2 {[%clk 0:00:34.3]} 31. Ra8+ {[%clk 0:00:12.1]} 31... Kg7 {[%clk
0:00:34.9]} 32. Na2 {[%clk 0:00:13.7]} 32... Qb3 {[%clk 0:00:29.9]} 33. Nc1
{[%clk 0:00:12.6]} 33... Qc2 {[%clk 0:00:28.6]} 34. Na2 {[%clk 0:00:12.9]} 34...
Be5 {[%clk 0:00:27.1]} 35. Nb4 {[%clk 0:00:11.6]} 35... Qb1 {[%clk 0:00:24.5]}
36. Nc6 {[%clk 0:00:12.6]} 36... Bc3 {[%clk 0:00:26]} 37. f4 {[%clk 0:00:10]}
37... Qe4 {[%clk 0:00:23.8]} 38. Rc8 {[%clk 0:00:08.4]} 38... Be1+ {[%clk
0:00:23.7]} 39. Kxe1 {[%clk 0:00:09.3]} 39... Qxe3 {[%clk 0:00:25.3]} 40. Kd1
{[%clk 0:00:06.6]} 40... c3 {[%clk 0:00:25.7]} 41. Nb4 {[%clk 0:00:08.2]} 41...
Qd2# {[%clk 0:00:26.5]} 0-1